bitfinex-derivatives/quotes_SOLF0:USTF0_20240912
["timestamp","ask_amount","ask_price","bid_price","bid_amount"]
[1726136644823,3.3421,134.64,134.62,3.3425]
[1726136645632,3.3418,134.65,134.62,3.3425]
[1726136652141,3.3418,134.65,134.61,14.7726]
[1726136652645,3.3422,134.64,134.6,16.1053]
[1726136652843,11.43,134.66,134.6,12.7624]
[1726136653039,11.43,134.66,134.6,1.3324]
[1726136653246,3.3423,134.63,134.59,12.7953]
[1726136653945,33.71,134.66,134.59,12.7953]
[1726136653946,3.3426,134.62,134.59,4.7085]
[1726136654132,3.3426,134.62,134.59,16.1385]
[1726136655944,3.3426,134.62,134.59,12.7953]
[1726136659952,3.3426,134.62,134.59,16.1386]
[1726136664953,35.0715,134.67,134.61,11.43]
[1726136665150,214.8847,134.68,134.64,11.43]
[1726136665151,212.31,134.68,134.64,11.43]
[1726136665350,3.3416,134.66,134.64,11.43]
[1726136671657,3.3414,134.67,134.64,11.43]
[1726136672761,3.3416,134.66,134.64,11.43]
[1726136675957,212.31,134.68,134.64,14.772]
[1726136676461,3.3414,134.67,134.64,11.43]
[1726136677560,3.3413,134.67,134.64,11.43]
[1726136678559,3.3416,134.66,134.64,11.43]
[1726136678755,3.3416,134.66,134.62,3.3424]
[1726136679061,3.3416,134.66,134.63,11.43]
[1726136679261,3.3419,134.65,134.63,11.43]
[1726136681661,3.342,134.64,134.63,11.43]
[1726136681865,3.342,134.64,134.61,16.1156]
[1726136682369,3.342,134.64,134.6,1.3265]
[1726136682370,3.3423,134.63,134.6,16.0995]
[1726136682671,3.3423,134.63,134.6,14.773]
[1726136683664,3.3425,134.62,134.6,11.43]
[1726136684666,3.3424,134.63,134.6,11.43]
[1726136698789,3.3426,134.62,134.59,12.7953]
[1726136698984,33.71,134.65,134.59,12.7953]
[1726136699592,3.3425,134.63,134.59,4.7085]
[1726136699782,3.3425,134.63,134.59,16.1385]
[1726136701881,3.3425,134.63,134.59,4.7085]
[1726136702198,33.71,134.6,134.54,11.43]
[1726136702390,33.71,134.6,134.55,5.95883913]
[1726136702692,3.3437,134.58,134.54,11.43]
[1726136702894,3.3437,134.58,134.55,5.95898468]
[1726136703086,3.3437,134.58,134.54,11.43]
[1726136703390,3.3437,134.58,134.54,14.7745]
[1726136703781,3.3434,134.59,134.54,11.43]
[1726136703987,33.71,134.6,134.54,11.43]
[1726136704786,3.3435,134.58,134.54,11.43]
[1726136704990,3.3435,134.58,134.54,14.7743]
[1726136707095,3.3435,134.58,134.55,3.3443]
[1726136708282,3.3434,134.59,134.55,3.3443]
[1726136709388,3.3431,134.6,134.56,14.774]
[1726136710598,3.3433,134.59,134.56,14.774]
[1726136710897,3.3433,134.59,134.56,3.344]
[1726136711401,3.3433,134.59,134.55,3.3441]
[1726136715597,3.3433,134.59,134.56,3.344]
[1726136716104,3.3432,134.6,134.56,3.344]
[1726136717203,3.3429,134.61,134.57,3.3437]
[1726136717395,35.0446,134.62,134.57,3.3437]
[1726136717595,35.0446,134.62,134.56,11.43]
[1726136717795,3.3432,134.6,134.56,14.7739]
[1726136718604,3.3433,134.59,134.56,14.7739]
[1726136719999,3.3433,134.59,134.56,3.3439]
[1726136724212,3.3433,134.59,134.55,18.8905]
[1726136724410,3.3433,134.59,134.55,7.4605]
[1726136727207,3.3433,134.59,134.56,3.3439]
[1726136728013,3.3431,134.6,134.56,3.3439]
[1726136728207,3.3431,134.6,134.55,4.1164]
[1726136728208,1.3146,134.62,134.57,11.43]
[1726136728409,33.73,134.63,134.57,11.43]
[1726136729218,3.3428,134.61,134.57,14.7736]
[1726136729407,33.73,134.63,134.55,4.1164]
[1726136729711,33.73,134.62,134.56,11.43]
[1726136729914,3.3432,134.6,134.56,3.344]
[1726136733012,3.3428,134.61,134.57,3.3436]
[1726136734613,3.3431,134.6,134.57,3.3436]
[1726136735215,3.3429,134.61,134.57,3.3436]
[1726136736212,3.3429,134.61,134.58,3.3435]
[1726136736613,3.3429,134.61,134.57,3.3437]
[1726136744731,3.3429,134.61,134.58,3.3435]
[1726136747520,3.3427,134.62,134.59,3.3433]
[1726136752338,3.3427,134.62,134.57,11.43]
[1726136752339,3.3428,134.61,134.58,3.3434]
[1726136755737,3.3428,134.61,134.57,3.3437]
[1726136756832,3.3431,134.6,134.56,14.7739]
[1726136757745,3.3433,134.59,134.57,5.95844631]
[1726136757936,3.3433,134.59,134.56,14.7739]
[1726136758138,3.3433,134.59,134.57,5.95847532]
[1726136758438,3.3433,134.59,134.56,14.7739]
[1726136758641,3.3433,134.59,134.57,5.95847532]
[1726136758942,33.73,134.62,134.56,14.7739]
[1726136758943,3.3431,134.6,134.56,14.7739]
[1726136759142,3.3431,134.6,134.57,5.95847115]
[1726136759443,3.3431,134.6,134.56,14.7739]
[1726136759648,3.3431,134.6,134.57,9.30217114]
[1726136759940,3.3431,134.6,134.57,3.3437]
[1726136765238,3.3431,134.6,134.58,5.95816103]
[1726136765433,3.3431,134.6,134.57,3.3437]
[1726136765640,3.3431,134.6,134.58,5.95816103]
[1726136765841,3.3431,134.6,134.57,3.3437]
[1726136766040,3.3431,134.6,134.58,5.95816103]
[1726136766235,3.3431,134.6,134.57,3.3437]
[1726136766436,3.3431,134.6,134.58,5.9581612]
[1726136766640,3.3431,134.6,134.57,3.3437]
[1726136766946,3.3431,134.6,134.58,5.9581612]
[1726136767146,3.3431,134.6,134.57,3.3437]
[1726136767340,3.3431,134.6,134.58,5.95815703]
[1726136767541,3.3431,134.6,134.57,3.3437]
[1726136767743,3.3431,134.6,134.58,5.95814869]
[1726136767943,3.3431,134.6,134.57,3.3437]
[1726136768147,3.3431,134.6,134.58,5.9581612]
[1726136768348,3.3431,134.6,134.57,3.3437]
[1726136768638,3.3431,134.6,134.58,5.95815521]
[1726136768845,3.3431,134.6,134.57,3.3437]
[1726136769151,3.3431,134.6,134.58,5.9581427]
[1726136769353,3.3431,134.6,134.57,3.3437]
[1726136769647,3.3431,134.6,134.58,5.9581612]
[1726136769848,3.3431,134.6,134.57,3.3437]
[1726136770055,3.3431,134.6,134.58,5.95814869]
[1726136770244,3.3431,134.6,134.57,3.3437]
[1726136770440,3.3431,134.6,134.58,5.95816029]
[1726136770639,3.3431,134.6,134.57,3.3437]
[1726136771043,3.3431,134.6,134.58,5.95815612]
[1726136771343,3.3431,134.6,134.57,3.3437]
[1726136771546,3.3431,134.6,134.58,5.95814087]
[1726136771741,3.3431,134.6,134.57,3.3437]
[1726136771946,3.3431,134.6,134.58,5.95815338]
[1726136772258,3.3431,134.6,134.57,3.3437]
[1726136772441,3.3431,134.6,134.58,5.95814452]
[1726136772750,33.73,134.63,134.55,15.5464]
[1726136772751,3.3429,134.61,134.55,15.5464]
[1726136772940,3.3429,134.61,134.57,3.3436]
[1726136773140,3.3429,134.61,134.58,5.95815703]
[1726136773341,3.3429,134.61,134.55,15.5464]
[1726136773553,3.3429,134.61,134.57,3.3436]
[1726136773855,3.3429,134.61,134.58,5.95814718]
[1726136774150,3.3429,134.61,134.57,3.3436]
[1726136774741,3.3429,134.61,134.58,5.95818148]
[1726136775050,3.3429,134.61,134.57,3.3436]
[1726136775257,3.3429,134.61,134.58,5.95817331]
[1726136775452,3.3429,134.61,134.57,3.3436]
[1726136775751,3.3429,134.61,134.58,5.9581427]
[1726136775950,3.3429,134.61,134.57,3.3436]
[1726136776149,3.3429,134.61,134.58,5.95815521]
[1726136776355,3.3429,134.61,134.57,3.3436]
[1726136776554,3.3429,134.61,134.58,5.95814687]
[1726136776756,3.3429,134.61,134.57,3.3436]
[1726136776956,3.3429,134.61,134.58,5.95813853]
[1726136777146,3.3429,134.61,134.57,3.3436]
[1726136777347,3.3429,134.61,134.58,5.95815195]
[1726136777544,3.3429,134.61,134.57,3.3436]
[1726136777748,3.3429,134.61,134.58,5.95814361]
[1726136777951,3.3429,134.61,134.57,3.3436]
[1726136778145,3.3429,134.61,134.58,5.95815612]
[1726136778361,3.3429,134.61,134.57,3.3436]
[1726136778560,3.3429,134.61,134.58,5.95814655]
[1726136778765,3.3429,134.61,134.57,3.3436]
[1726136779062,3.3429,134.61,134.58,5.95814238]
[1726136779262,3.3429,134.61,134.57,3.3436]
[1726136779462,3.3429,134.61,134.58,5.95815164]
[1726136779657,3.3429,134.61,134.57,3.3436]
[1726136779859,3.3429,134.61,134.58,5.95814747]
[1726136780154,3.3429,134.61,134.55,15.5464]
[1726136780352,3.3429,134.61,134.56,5.95813761]
[1726136780558,33.73,134.63,134.57,9.30183761]
[1726136780764,33.73,134.63,134.57,3.3437]
[1726136781060,33.73,134.63,134.58,5.95814925]
[1726136781265,33.73,134.63,134.57,3.3437]
[1726136781454,33.73,134.63,134.58,5.95814232]
[1726136781649,33.73,134.63,134.57,3.3437]
[1726136781847,3.3429,134.61,134.58,5.9581507]
[1726136782047,3.3429,134.61,134.57,3.3437]
[1726136782248,3.3429,134.61,134.58,5.95814232]
[1726136782449,3.3429,134.61,134.57,3.3437]
[1726136782652,3.3429,134.61,134.58,5.95815671]
[1726136782874,33.73,134.63,134.57,3.3437]
[1726136783258,33.73,134.63,134.58,5.95815253]
[1726136783458,3.343,134.61,134.57,3.3437]
[1726136783661,3.343,134.61,134.58,5.95815671]
[1726136783964,3.343,134.61,134.57,3.3437]
[1726136784166,3.343,134.61,134.58,5.95814834]
[1726136784366,104.65475383,134.66,134.55,2.717]
[1726136784367,33.73,134.6,134.55,2.717]
[1726136784563,33.73,134.6,134.55,1.3745]
[1726136784957,33.73,134.6,134.56,5.95843694]
[1726136785161,3.3434,134.59,134.57,5.95843694]
[1726136785365,3.3434,134.59,134.55,4.7186]
[1726136785663,3.3434,134.59,134.56,5.95850217]
[1726136785869,22.3,134.61,134.57,5.95850217]
[1726136786167,22.3,134.61,134.56,11.43]
[1726136786359,22.3,134.61,134.57,5.95850217]
[1726136786561,3.3431,134.6,134.56,14.7739]
[1726136786863,3.3431,134.6,134.57,5.95857107]
[1726136787171,3.3431,134.6,134.56,14.7739]
[1726136787465,3.3431,134.6,134.57,5.95857945]
[1726136787763,3.3431,134.6,134.56,14.7739]
[1726136787967,3.3431,134.6,134.57,5.95857107]
[1726136788168,3.3431,134.6,134.56,14.7739]
[1726136788362,3.3431,134.6,134.57,5.95857107]
[1726136788661,3.3431,134.6,134.56,14.7739]
[1726136788865,3.3431,134.6,134.57,5.95856249]
[1726136789067,3.3431,134.6,134.56,14.7739]
[1726136789266,3.3431,134.6,134.57,5.95857505]
[1726136789463,3.3431,134.6,134.56,14.7739]
[1726136789669,3.3431,134.6,134.57,5.95857445]
[1726136789872,3.3431,134.6,134.56,14.7739]
[1726136790070,3.3431,134.6,134.57,5.95858282]
[1726136790270,3.3431,134.6,134.56,14.7739]
[1726136790471,3.3431,134.6,134.57,5.95856904]
[1726136790663,3.3431,134.6,134.56,14.7739]
[1726136791064,3.3431,134.6,134.57,5.9585786]
[1726136791266,3.3431,134.6,134.56,14.7739]
[1726136791467,3.3431,134.6,134.57,5.95856904]
[1726136791670,3.3431,134.6,134.56,14.7739]
[1726136791860,3.3431,134.6,134.57,5.95857741]
[1726136792059,3.3431,134.6,134.56,14.7739]
[1726136792261,3.3431,134.6,134.57,5.95856485]
[1726136792469,3.3431,134.6,134.58,5.95856485]
[1726136792669,3.3431,134.6,134.56,14.7739]
[1726136792871,3.3431,134.6,134.57,5.95857741]
[1726136793068,1.4207,134.62,134.56,11.43]
[1726136793371,1.4207,134.62,134.57,17.38828578]
[1726136793566,4.7633,134.62,134.58,9.30168578]
[1726136793780,4.7633,134.62,134.59,5.95828578]
[1726136793959,4.7633,134.62,134.58,3.3434]
[1726136794363,4.7633,134.62,134.59,5.95810465]
[1726136794569,4.7633,134.62,134.58,3.3434]
[1726136794972,4.7633,134.62,134.59,5.95800897]
[1726136795171,3.3426,134.62,134.58,3.3434]
[1726136795374,3.3426,134.62,134.59,5.95799716]
[1726136795574,3.3426,134.62,134.58,3.3434]
[1726136795769,3.3426,134.62,134.59,5.95799156]
[1726136795972,3.3426,134.62,134.59,3.3433]
[1726136797174,3.3424,134.63,134.6,3.343]
[1726136799475,33.73,134.64,134.57,11.43]
[1726136799677,33.73,134.64,134.58,5.95779846]
[1726136799873,33.73,134.64,134.59,5.95779846]
[1726136800074,3.3425,134.63,134.59,3.3431]
[1726136803268,33.73,134.64,134.59,3.3431]
[1726136803269,3.3425,134.62,134.59,3.3431]
[1726136808176,3.3424,134.63,134.6,3.343]
[1726136815380,3.3419,134.65,134.6,11.43]
[1726136815789,3.3419,134.65,134.61,5.95720416]
[1726136815982,3.3419,134.65,134.6,11.43]
[1726136816179,3.3419,134.65,134.61,5.95716166]
[1726136816380,3.3419,134.65,134.6,11.43]
[1726136816578,3.3419,134.65,134.61,5.95716167]
[1726136816785,22.3,134.67,134.62,11.43]
[1726136816974,22.3,134.67,134.63,11.43]
[1726136817178,22.3,134.68,134.63,11.43]
[1726136817383,22.3,134.69,134.65,3.3418]
[1726136818185,1.4233,134.7,134.64,11.43]
[1726136819380,3.341,134.69,134.65,3.3417]
[1726136819580,35.1533,134.7,134.65,3.3417]
[1726136819786,35.1533,134.7,134.56,2.709]
[1726136819994,35.1533,134.7,134.64,14.7718]
[1726136820479,35.1533,134.7,134.64,3.3418]
[1726136820679,22.3,134.68,134.63,3.3422]
[1726136821086,11.43,134.67,134.63,3.3422]
[1726136821285,3.3417,134.66,134.63,3.3422]
[1726136821495,3.3417,134.66,134.62,3.3424]
[1726136821783,3.3419,134.65,134.56,2.709]
[1726136821990,3.3419,134.65,134.61,11.43]
[1726136822187,33.73,134.67,134.61,11.43]
[1726136822777,33.73,134.67,134.61,14.7727]
[1726136823589,22.3,134.65,134.6,14.7729]
[1726136824794,3.3422,134.64,134.6,14.7729]
[1726136825487,3.3425,134.62,134.56,2.709]
[1726136825692,22.3,134.64,134.56,2.709]
[1726136825693,22.3,134.64,134.58,11.43]
[1726136826592,35.1295,134.65,134.58,11.43]
[1726136826795,3.3424,134.63,134.59,3.3431]
[1726136827391,3.3424,134.63,134.59,14.7731]
[1726136827587,3.3421,134.64,134.59,14.7731]
[1726136827788,3.3421,134.64,134.6,3.343]
[1726136828695,3.3423,134.63,134.59,14.7732]
[1726136830500,3.3426,134.62,134.59,11.43]
[1726136830798,3.3426,134.62,134.58,14.7734]
[1726136833389,3.3428,134.61,134.58,11.43]
[1726136834586,3.3431,134.6,134.58,11.43]
[1726136835411,3.3431,134.6,134.56,17.4829]
[1726136835599,3.3431,134.6,134.57,5.95809859]
[1726136835791,3.3431,134.6,134.56,17.4829]
[1726136835991,3.3431,134.6,134.57,5.95806699]
[1726136836293,11.43,134.62,134.56,17.4829]
[1726136836294,33.73,134.62,134.56,17.4829]
[1726136836493,33.73,134.61,134.56,1.3395]
[1726136836806,33.73,134.61,134.55,16.1486]
[1726136837096,3.3436,134.58,134.56,5.95861804]
[1726136837302,3.3436,134.58,134.55,12.8045]
[1726136837501,3.3436,134.58,134.55,1.3745]
[1726136839196,2.6076,134.64,134.49,2.6806]
[1726136839197,3.3438,134.57,134.53,3.3447]
[1726136839407,2.6076,134.64,134.49,2.6806]
[1726136839408,33.73,134.58,134.54,5.95958472]
[1726136839605,33.73,134.58,134.51,11.43]
[1726136839905,3.3442,134.56,134.52,5.9601531]
[1726136840197,3.3442,134.56,134.53,5.9601531]
[1726136840394,3.3442,134.56,134.51,14.7751]
[1726136840597,3.3442,134.56,134.52,9.30512689]
[1726136840898,3.3442,134.56,134.53,5.96012689]
[1726136841091,33.73,134.58,134.52,11.43]
[1726136841294,33.73,134.58,134.53,5.96012689]
[1726136841501,33.73,134.58,134.52,11.43]
[1726136841704,3.3442,134.56,134.52,14.7748]
[1726136841889,33.73,134.58,134.53,5.96025641]
[1726136842095,33.73,134.58,134.52,14.7748]
[1726136842295,2.6076,134.64,134.56,11.43]
[1726136842596,33.73,134.63,134.57,11.43]
[1726136842797,3.3429,134.61,134.57,11.43]
[1726136843488,3.3429,134.61,134.57,14.7736]
[1726136844407,33.73,134.63,134.57,14.7736]
[1726136844408,3.3431,134.6,134.57,14.7736]
[1726136846101,3.3431,134.6,134.57,3.3436]
[1726136851404,33.73,134.63,134.57,3.3436]
[1726136851707,3.3428,134.61,134.57,3.3436]
[1726136853813,3.343,134.6,134.57,3.3436]
[1726136858610,33.73,134.63,134.56,11.43]
[1726136858812,33.73,134.63,134.56,14.7739]
[1726136859318,3.3432,134.6,134.57,3.3437]
[1726136860217,3.3432,134.6,134.56,14.7739]
[1726136860515,3.3433,134.59,134.56,14.7739]
[1726136861017,3.3432,134.6,134.56,14.7739]
[1726136862411,3.3433,134.59,134.56,14.7739]
[1726136869617,3.3431,134.6,134.56,14.7739]
[1726136869924,22.3,134.62,134.56,14.7739]
[1726136871319,3.3433,134.59,134.56,14.7739]
[1726136874813,3.3431,134.6,134.56,14.7739]
[1726136878732,3.3433,134.59,134.56,14.7739]
[1726136879820,3.3431,134.6,134.56,14.7739]
[1726136880926,3.343,134.61,134.57,3.3436]
[1726136881727,3.343,134.61,134.57,14.7736]
[1726136882325,3.343,134.61,134.58,3.3435]
[1726136887036,3.343,134.6,134.58,3.3435]
[1726136887232,22.3,134.62,134.57,11.43]
[1726136887835,3.3433,134.59,134.57,11.43]
[1726136889836,3.3433,134.59,134.57,14.7738]
[1726136892438,3.3433,134.59,134.57,11.43]
[1726136899648,3.3432,134.6,134.57,11.43]
[1726136900159,3.3433,134.59,134.57,11.43]
[1726136902549,3.3431,134.6,134.57,14.7738]
[1726136906056,3.3433,134.59,134.57,14.7738]
[1726136907261,3.3431,134.6,134.57,14.7738]
[1726136907963,3.3429,134.61,134.58,3.3435]
[1726136916273,3.3429,134.61,134.59,3.3432]
[1726136917065,3.3429,134.61,134.57,11.43]
[1726136917272,3.3429,134.61,134.56,1.3383]
[1726136917273,3.3426,134.62,134.58,11.43]
[1726136917874,3.3426,134.62,134.59,3.3431]
[1726136919072,12.8295,134.65,134.59,3.3431]
[1726136919073,3.3424,134.63,134.6,3.343]
[1726136919270,3.3424,134.63,134.61,11.43]
[1726136919476,22.3,134.66,134.61,11.43]
[1726136919679,3.3419,134.65,134.62,3.3423]
[1726136921879,3.342,134.64,134.62,3.3423]
[1726136922872,3.3423,134.63,134.61,11.43]
[1726136923265,3.3425,134.62,134.59,14.7732]
[1726136923471,33.73,134.65,134.59,3.3432]
[1726136923879,3.3426,134.62,134.59,3.3432]
[1726136925372,33.73,134.65,134.58,14.7733]
[1726136925877,3.3429,134.61,134.58,14.7733]
[1726136930782,3.3429,134.61,134.58,3.3433]
[1726136931086,22.3,134.63,134.57,11.43]
[1726136931583,3.3432,134.6,134.57,14.7737]
[1726136932484,3.3429,134.61,134.58,3.3435]
[1726136932684,3.3429,134.61,134.58,14.7735]
[1726136936393,3.3427,134.62,134.59,3.3433]
[1726136936704,35.0732,134.64,134.58,11.43]
[1726136937101,3.3429,134.61,134.58,14.7733]
[1726136942401,3.3429,134.61,134.58,3.3433]
[1726136942600,3.3429,134.61,134.58,14.7733]
[1726136953920,3.3429,134.61,134.58,18.53389164]
[1726136954724,3.3431,134.6,134.58,14.7733]
[1726136955812,3.3431,134.6,134.58,11.43]
[1726136956827,22.3,134.62,134.57,14.7736]
[1726136957126,22.3,134.62,134.57,11.43]
[1726136957517,3.3435,134.59,134.57,11.43]
[1726136958921,3.3435,134.58,134.55,4.7229]
[1726136959127,3.3435,134.58,134.56,11.43]
[1726136963727,3.3434,134.59,134.56,11.43]
[1726136964230,3.3434,134.59,134.56,14.774]
[1726136970539,1.3432,134.64,134.56,14.774]
[1726136970723,1.3432,134.64,134.57,11.43]
[1726136971037,23.6432,134.64,134.59,11.43]
[1726136971238,3.3427,134.62,134.59,11.43]
[1726136971438,3.3427,134.62,134.6,11.43]
[1726136971629,4.6854,134.64,134.61,11.43]
[1726136972240,3.3422,134.64,134.61,11.43]
[1726136972538,3.3423,134.63,134.61,11.43]
[1726136974632,3.3423,134.63,134.6,14.7729]
[1726136978233,3.3426,134.62,134.56,1.3027]
[1726136978434,3.3426,134.62,134.59,11.43]
[1726136982942,3.3428,134.61,134.59,11.43]
[1726136983948,3.3426,134.62,134.59,11.43]
[1726136988341,3.3426,134.62,134.59,14.7732]
[1726136991749,103.4639801,134.66,134.6,14.7728]
[1726136991750,22.31,134.65,134.6,14.7728]
[1726136992341,3.3422,134.64,134.6,14.7728]
[1726136992752,3.3422,134.64,134.61,3.3427]
[1726136993752,3.3423,134.63,134.61,3.3427]
[1726136994651,3.3426,134.62,134.6,14.7729]
[1726136995547,3.3426,134.62,134.6,11.43]
[1726136996345,3.3426,134.62,134.56,1.3027]
[1726136996346,3.3426,134.62,134.59,11.43]
[1726136997360,3.3426,134.62,134.59,14.7731]
[1726136997753,22.31,134.63,134.57,11.43]
[1726136997955,22.31,134.63,134.57,14.7736]
[1726136998159,3.3432,134.6,134.57,14.7736]
[1726136998559,12.7698,134.64,134.57,14.7736]
[1726136998560,33.74,134.62,134.57,3.3436]
[1726136999753,3.3431,134.6,134.57,3.3436]
[1726137001264,3.3434,134.59,134.56,4.6465]
[1726137001466,3.3434,134.59,134.56,12.7327]
[1726137001864,3.3436,134.58,134.56,1.3027]
[1726137002065,33.74,134.6,134.55,1.3788]
[1726137002262,33.74,134.6,134.52,3.69230769]
[1726137002464,3.3442,134.56,134.53,11.43]
[1726137004672,3.3442,134.56,134.53,14.7748]
[1726137005173,3.3442,134.56,134.53,3.3448]
[1726137005375,3.3442,134.56,134.53,14.7748]
[1726137007372,3.3442,134.56,134.53,11.43]
[1726137008466,22.31,134.58,134.53,11.43]
[1726137008769,33.74,134.57,134.5,4.1721]
[1726137008970,0.04847823,134.53,134.5,15.6021]
[1726137009274,0.04847823,134.53,134.5,14.17]
[1726137009473,3.3451,134.52,134.5,14.17]
[1726137009692,0.04847823,134.53,134.5,14.17]
[1726137010064,3.345,134.52,134.5,14.17]
[1726137010268,3.345,134.52,134.5,12.8528]
[1726137010482,3.345,134.52,134.5,1.4228]
[1726137011975,3.39337823,134.53,134.5,1.4228]
[1726137012880,3.3449,134.53,134.5,1.4228]
[1726137013573,3.3449,134.53,134.5,4.7683]
[1726137013782,3.3446,134.54,134.5,12.8528]
[1726137014078,3.3446,134.54,134.5,12.81680845]
[1726137014280,3.3446,134.54,134.51,3.3451]
[1726137018872,3.3446,134.54,134.52,3.345]
[1726137019465,3.3446,134.54,134.51,3.3451]
[1726137022882,3.3444,134.55,134.5,12.81680845]
[1726137023380,33.74,134.56,134.5,12.81680845]
[1726137023580,3.3446,134.54,134.51,3.345]
[1726137025172,33.74,134.56,134.5,16.16220845]
[1726137025369,22.31,134.54,134.5,4.73220845]
[1726137025574,22.31,134.54,134.5,3.3454]
[1726137025781,3.3449,134.53,134.5,3.3454]
[1726137030489,3.3452,134.52,134.49,3.3456]
[1726137033586,3.3449,134.53,134.49,3.3456]
[1726137034186,3.3449,134.53,134.5,3.3455]
[1726137034683,22.31,134.54,134.49,3.3456]
[1726137034882,22.31,134.54,134.49,14.7756]
[1726137035289,3.3449,134.53,134.5,3.3453]
[1726137036784,3.3451,134.52,134.49,3.3457]
[1726137037580,33.74,134.54,134.48,14.7759]
[1726137037791,33.74,134.54,134.48,11.43]
[1726137038791,3.3452,134.52,134.49,3.3457]
[1726137042995,33.74,134.52,134.47,4.7575]
[1726137043195,33.74,134.51,134.38,6.6968]
[1726137043385,22.31,134.49,134.43,11.43]
[1726137043585,3.3462,134.48,134.44,3.3469]
[1726137044695,3.3462,134.48,134.45,3.3466]
[1726137045795,3.3459,134.49,134.44,11.43]
[1726137045979,3.3459,134.49,134.44,12.801]
[1726137046780,3.3456,134.5,134.44,12.801]
[1726137046980,22.31,134.52,134.47,11.43]
[1726137047787,3.3454,134.51,134.48,3.3459]
[1726137053809,3.3459,134.49,134.44,1.371]
[1726137054092,3.3459,134.49,134.45,11.43]
[1726137055295,3.3459,134.49,134.44,1.371]
[1726137055296,3.346,134.48,134.44,1.371]
[1726137055494,3.346,134.48,134.44,12.801]
[1726137055691,3.346,134.48,134.45,3.3466]
[1726137058201,3.3459,134.49,134.45,3.3466]
[1726137059494,3.3459,134.49,134.46,3.3464]
[1726137060710,3.3456,134.5,134.46,3.3464]
[1726137061902,11.43,134.51,134.44,2.7496]
[1726137062098,22.31,134.5,134.44,14.1796]
[1726137062500,3.3459,134.49,134.44,14.1796]
[1726137063002,3.3459,134.49,134.46,3.3464]
[1726137063601,11.43,134.47,134.39,1.3085]
[1726137063808,11.43,134.47,134.4,12.8631]
[1726137064404,11.43,134.47,134.4,1.4331]
[1726137064603,11.43,134.47,134.41,11.43]
[1726137064794,3.3466,134.46,134.41,11.43]
[1726137064997,24.8654,134.52,134.41,11.43]
[1726137065203,33.74,134.48,134.42,11.43]
[1726137065404,3.3464,134.47,134.43,3.3471]
[1726137065703,11.43,134.49,134.43,11.43]
[1726137066204,3.3461,134.48,134.44,3.3468]
[1726137067102,33.74,134.5,134.45,11.43]
[1726137067302,33.74,134.52,134.46,11.43]
[1726137067805,3.3457,134.5,134.47,3.3462]
[1726137068596,3.3454,134.51,134.47,3.3462]
[1726137068810,3.3454,134.51,134.46,11.43]
[1726137069102,37.0851,134.52,134.46,11.43]
[1726137069298,25.6551,134.52,134.48,3.346]
[1726137069499,1.3272,134.53,134.47,11.43]
[1726137069698,33.74,134.54,134.49,11.43]
[1726137070909,3.3448,134.53,134.49,14.7757]
[1726137071104,1.3515,134.57,134.5,11.43]
[1726137071405,3.3447,134.54,134.5,14.7755]
[1726137071611,33.74,134.55,134.5,3.3455]
[1726137071909,11.43,134.55,134.5,3.3455]